bitfinex-derivatives/quotes_BTCF0:USTF0_20250729
["timestamp","ask_amount","ask_price","bid_price","bid_amount"]
[1753751383415,0.41476,118160.0,118150.0,1.64877052]
[1753751385117,0.41476,118160.0,118150.0,1.57259818]
[1753751387610,0.41375,118160.0,118150.0,0.85394818]
[1753751387816,0.86721388,118160.0,118150.0,0.5697476]
[1753751388212,0.41375,118160.0,118150.0,0.5697476]
[1753751388617,0.41375,118160.0,118150.0,0.96873848]
[1753751388812,0.34939,118160.0,118150.0,0.89255818]
[1753751389417,0.41375,118160.0,118150.0,0.89255818]
[1753751389917,0.41375,118160.0,118150.0,0.96873923]
[1753751390122,0.41375,118160.0,118150.0,0.70583923]
[1753751393121,0.41375,118160.0,118150.0,1.38643923]
[1753751393821,0.34939,118160.0,118150.0,1.38643923]
[1753751394020,0.20475,118160.0,118150.0,1.38643923]
[1753751394218,0.30475,118160.0,118150.0,1.38643923]
[1753751394418,0.20475,118160.0,118150.0,1.38643923]
[1753751395419,0.31475,118160.0,118150.0,1.38643923]
[1753751395614,0.32475,118160.0,118150.0,1.38643923]
[1753751395920,0.20475,118160.0,118150.0,1.38643923]
[1753751396125,0.002,118160.0,118150.0,1.38643923]
[1753751396516,0.04915,118160.0,118150.0,1.38643923]
[1753751396720,0.17915,118160.0,118150.0,1.38643923]
[1753751397421,0.12087,118160.0,118150.0,1.38643923]
[1753751397619,0.04915,118160.0,118150.0,1.38643923]
[1753751397919,0.13915,118160.0,118150.0,1.38643923]
[1753751398618,0.04915,118160.0,118150.0,1.38643923]
[1753751398813,0.16915,118160.0,118150.0,1.38643923]
[1753751399021,0.04915,118160.0,118150.0,1.38643923]
[1753751399522,0.15915,118160.0,118150.0,1.38643923]
[1753751399823,0.002,118160.0,118150.0,1.38643923]
[1753751400218,0.002,118160.0,118150.0,1.31025818]
[1753751400419,0.002,118160.0,118150.0,1.38645277]
[1753751401224,0.002,118160.0,118150.0,1.31025818]
[1753751401424,0.002,118160.0,118150.0,1.57315818]
[1753751401625,0.002,118160.0,118150.0,1.67973234]
[1753751404024,0.002,118160.0,118150.0,1.57315818]
[1753751404224,0.002,118160.0,118150.0,1.2889576]
[1753751404422,0.002,118160.0,118150.0,1.57315818]
[1753751404818,0.04915,118160.0,118150.0,1.57315818]
[1753751405023,0.04915,118160.0,118150.0,1.67977906]
[1753751405423,0.04915,118160.0,118150.0,1.64930791]
[1753751405617,0.002,118160.0,118150.0,1.64930791]
[1753751407427,0.002,118160.0,118150.0,1.64508832]
[1753751408825,0.04915,118160.0,118150.0,1.64508832]
[1753751411727,0.002,118160.0,118150.0,1.64508832]
[1753751412724,0.002,118160.0,118150.0,1.786569]
[1753751415126,0.002,118160.0,118150.0,1.71041927]
[1753751415430,0.002,118160.0,118150.0,1.81704015]
[1753751423745,0.04715,118170.0,118160.0,0.1692633]
[1753751423945,0.04715,118170.0,118160.0,0.84298738]
[1753751423946,0.12257,118170.0,118160.0,0.84298738]
[1753751424140,0.88143,118180.0,118170.0,0.243049]
[1753751424341,1.04426,118180.0,118170.0,0.84297308]
[1753751424645,1.10708,118180.0,118170.0,0.84297308]
[1753751424845,0.427,118180.0,118170.0,0.84297308]
[1753751425838,0.427,118180.0,118170.0,1.52297308]
[1753751426239,0.36418,118180.0,118170.0,1.44686026]
[1753751426443,0.05058,118180.0,118170.0,1.55348114]
[1753751427239,0.126,118180.0,118170.0,1.55348114]
[1753751428448,0.126,118180.0,118170.0,1.81638114]
[1753751429949,0.125,118180.0,118170.0,1.81638114]
[1753751430352,0.125,118180.0,118170.0,1.70976026]
[1753751431552,0.20735,118180.0,118170.0,1.70972026]
[1753751432352,0.433,118180.0,118170.0,1.70972026]
[1753751432551,0.433,118180.0,118170.0,1.78580487]
[1753751432853,0.313,118180.0,118170.0,1.78580487]
[1753751434250,0.13193,118180.0,118170.0,1.70968026]
[1753751435056,0.13193,118180.0,118170.0,1.78580159]
[1753751435452,0.05358,118180.0,118170.0,1.70968026]
[1753751435847,0.17358,118180.0,118170.0,1.78579846]
[1753751436042,0.129,118180.0,118170.0,1.78579846]
[1753751436254,0.28681,118180.0,118170.0,1.78579846]
[1753751436744,0.31735,118180.0,118170.0,1.78579846]
[1753751437257,0.31735,118180.0,118170.0,1.70968026]
[1753751438458,0.36018,118180.0,118170.0,1.70968026]
[1753751438659,0.423,118180.0,118170.0,1.70968026]
[1753751439460,0.20735,118180.0,118170.0,1.70968026]
[1753751440256,0.20735,118180.0,118170.0,1.78579986]
[1753751440759,0.31735,118180.0,118170.0,1.78579986]
[1753751440953,0.20735,118180.0,118170.0,1.78579986]
[1753751441361,0.33735,118180.0,118170.0,1.78579986]
[1753751441562,0.20735,118180.0,118170.0,1.78579986]
[1753751442759,0.32735,118180.0,118170.0,1.78579986]
[1753751442960,0.30735,118180.0,118170.0,1.78579986]
[1753751445472,0.31735,118180.0,118170.0,1.78581204]
[1753751447378,0.31735,118180.0,118170.0,1.70968026]
[1753751447564,0.31735,118180.0,118170.0,1.78581839]
[1753751448062,0.35843,118180.0,118170.0,1.71491839]
[1753751448263,0.42051,118180.0,118170.0,1.42593963]
[1753751448864,0.42051,118180.0,118170.0,1.46454963]
[1753751449074,0.13193,118180.0,118170.0,1.63878026]
[1753751449269,0.28987,118180.0,118170.0,1.78401114]
[1753751449671,0.19987,118180.0,118170.0,1.78401114]
[1753751451176,0.19987,118180.0,118170.0,1.67739026]
[1753751451676,0.19987,118180.0,118170.0,1.78401114]
[1753751452178,0.19987,118180.0,118170.0,1.67739026]
[1753751453498,0.19987,118180.0,118170.0,1.78401114]
[1753751455383,0.19987,118180.0,118170.0,1.75355545]
[1753751456474,0.30987,118180.0,118170.0,1.75355545]
[1753751456674,0.19987,118180.0,118170.0,1.75355545]
[1753751459282,0.30987,118180.0,118170.0,1.75355545]
[1753751459483,0.19987,118180.0,118170.0,1.75355545]
[1753751461977,0.006,118180.0,118170.0,1.75355545]
[1753751462182,0.006,118180.0,118170.0,1.96639608]
[1753751462485,0.006,118180.0,118170.0,1.75355545]
[1753751463489,0.05288,118180.0,118170.0,1.75355545]
[1753751464281,0.17004,118180.0,118170.0,1.75347545]
[1753751464481,0.28004,118180.0,118170.0,1.75347545]
[1753751464687,0.17004,118180.0,118170.0,1.75347545]
[1753751464887,0.28004,118180.0,118170.0,1.75347545]
[1753751465087,0.29004,118180.0,118170.0,1.75347545]
[1753751465286,0.17004,118180.0,118170.0,1.67731026]
[1753751465591,0.17004,118180.0,118170.0,1.78393114]
[1753751465791,0.26004,118180.0,118170.0,1.78393114]
[1753751466285,0.17004,118180.0,118170.0,1.67731026]
[1753751466482,0.28004,118180.0,118170.0,1.67731026]
[1753751466681,0.20184,118180.0,118170.0,1.67731026]
[1753751467191,0.29184,118180.0,118170.0,1.67731026]
[1753751468785,0.14288,118180.0,118170.0,0.98934026]
[1753751469089,0.98991576,118180.0,118170.0,0.50830868]
[1753751469283,1.66963576,118180.0,118170.0,0.4321488]
[1753751469586,1.66963576,118180.0,118170.0,0.53876968]
[1753751469787,2.16963576,118180.0,118170.0,0.50830723]
[1753751470887,2.027811,118180.0,118170.0,0.4321488]
[1753751472281,1.7439546,118180.0,118170.0,0.4321488]
[1753751472485,2.0278111,118180.0,118170.0,0.4321488]
[1753751472882,2.0278111,118180.0,118170.0,0.1692488]
[1753751476087,1.7439546,118180.0,118170.0,0.1692488]
[1753751476288,2.0278111,118180.0,118170.0,0.1692488]
[1753751476895,1.7439546,118180.0,118170.0,0.1692488]
[1753751477396,1.7439546,118180.0,118170.0,0.2075188]
[1753751479792,1.0642346,118180.0,118170.0,0.5860053]
[1753751479996,0.83292,118180.0,118170.0,0.5860053]
[1753751480293,1.5707,118180.0,118170.0,0.6246153]
[1753751480485,1.7399346,118180.0,118170.0,0.6246153]
[1753751480892,1.7399346,118180.0,118170.0,0.5860053]
[1753751481291,0.89094,118180.0,118170.0,0.5860053]
[1753751481487,0.2239,118180.0,118170.0,0.6246153]
[1753751481688,0.90366,118180.0,118170.0,0.6246153]
[1753751481893,0.97402,118180.0,118170.0,0.6246153]
[1753751482089,1.07326,118180.0,118170.0,0.6246153]
[1753751485803,1.07326,118180.0,118170.0,0.3407588]
[1753751485999,1.2424946,118180.0,118170.0,0.5860053]
[1753751486193,1.2424946,118180.0,118170.0,0.2075188]
[1753751486394,1.2424946,118180.0,118170.0,0.1692488]
[1753751487300,1.2424946,118180.0,118170.0,0.2694688]
[1753751487501,1.2424946,118180.0,118170.0,0.5533253]
[1753751488601,1.2424946,118180.0,118170.0,0.5863653]
[1753751489303,1.07326,118180.0,118170.0,0.5863653]
[1753751489804,1.01524,118180.0,118170.0,0.5863653]
[1753751490007,1.0152,118180.0,118170.0,0.6249753]
[1753751490501,0.2539,118180.0,118170.0,0.8878753]
[1753751490706,0.1339,118180.0,118170.0,0.96403373]
[1753751490906,0.006,118180.0,118170.0,0.96403373]
[1753751491094,0.006,118180.0,118170.0,0.8878753]
[1753751491095,0.05465,118180.0,118170.0,0.8878753]
[1753751491295,0.20023,118180.0,118170.0,0.8878753]
[1753751491502,0.31023,118180.0,118170.0,0.8878753]
[1753751491706,0.35145,118180.0,118170.0,0.8878753]
[1753751491900,0.40947,118180.0,118170.0,0.96403373]
[1753751492908,0.29947,118180.0,118170.0,1.64375373]
[1753751493408,0.24145,118180.0,118170.0,1.64375373]
[1753751494401,0.35145,118180.0,118170.0,1.64375373]
[1753751495009,0.40947,118180.0,118170.0,1.64375373]
[1753751495205,0.40947,118180.0,118170.0,1.5675953]
[1753751495414,0.29947,118180.0,118170.0,1.5675953]
[1753751495709,0.40947,118180.0,118170.0,1.5675953]
[1753751496511,0.40947,118180.0,118170.0,1.3046953]
[1753751497213,0.40947,118180.0,118170.0,0.6249753]
[1753751497412,0.29947,118180.0,118170.0,1.3046953]
[1753751497712,0.38947,118180.0,118170.0,1.3046953]
[1753751498102,0.29947,118180.0,118170.0,1.3046953]
[1753751498312,0.40947,118180.0,118170.0,1.3046953]
[1753751498712,0.29947,118180.0,118170.0,1.3046953]
[1753751499012,0.40947,118180.0,118170.0,1.3046953]
[1753751499210,0.29947,118180.0,118170.0,1.3046953]
[1753751499513,0.42947,118180.0,118170.0,1.3046953]
[1753751499699,0.40947,118180.0,118170.0,1.3046953]
[1753751501616,0.29947,118180.0,118170.0,1.3046953]
[1753751501816,0.40947,118180.0,118170.0,1.3046953]
[1753751502414,0.40947,118180.0,118170.0,1.5675953]
[1753751504116,0.29947,118180.0,118170.0,1.5675953]
[1753751504317,0.39947,118180.0,118170.0,1.5675953]
[1753751505423,0.39947,118180.0,118170.0,1.64371373]
[1753751509123,0.39947,118180.0,118170.0,1.5675553]
[1753751512631,0.38947,118180.0,118170.0,1.5675553]
[1753751512930,0.40947,118180.0,118170.0,1.5675553]
[1753751514722,0.29947,118180.0,118170.0,1.5675553]
[1753751514915,0.39947,118180.0,118170.0,1.5675553]
[1753751518531,0.39947,118180.0,118170.0,1.2836988]
[1753751518725,0.39947,118180.0,118170.0,1.5675553]
[1753751519121,0.39947,118180.0,118170.0,1.64374452]
[1753751519524,0.39947,118180.0,118170.0,1.5675553]
[1753751520828,0.39947,118180.0,118170.0,1.70928806]
[1753751521930,0.34145,118180.0,118170.0,1.70928806]
[1753751528737,0.34145,118180.0,118170.0,1.60311431]
[1753751528939,0.40027,118180.0,118170.0,1.81590894]
[1753751529137,0.40027,118180.0,118170.0,1.70928806]
[1753751531641,0.41027,118180.0,118170.0,1.70928806]
[1753751532038,0.24145,118180.0,118170.0,1.70928806]
[1753751532235,0.34145,118180.0,118170.0,1.70928806]
[1753751534940,0.30023,118180.0,118170.0,1.70928806]
[1753751535642,0.20023,118180.0,118170.0,1.70928806]
[1753751536045,0.33023,118180.0,118170.0,1.70928806]
[1753751536547,0.20023,118180.0,118170.0,1.70928806]
[1753751536944,0.31023,118180.0,118170.0,1.70928806]
[1753751537948,0.31023,118180.0,118170.0,1.81590894]
[1753751539150,0.20023,118180.0,118170.0,1.81590894]
[1753751539650,0.32023,118180.0,118170.0,1.81590894]
[1753751540546,0.20023,118180.0,118170.0,1.81590894]
[1753751540745,0.30023,118180.0,118170.0,1.81590894]
[1753751545353,0.30023,118180.0,118170.0,1.78548412]
[1753751548859,0.20023,118180.0,118170.0,1.78548412]
[1753751549863,0.29023,118180.0,118170.0,1.78548412]
[1753751550160,0.20023,118180.0,118170.0,1.78548412]
[1753751550759,0.31023,118180.0,118170.0,1.78548412]
[1753751550957,0.20023,118180.0,118170.0,1.78548412]
[1753751551358,0.006,118180.0,118170.0,1.78548412]
[1753751552161,0.05152,118180.0,118170.0,1.78548412]
[1753751553471,0.15152,118180.0,118170.0,1.78548412]
[1753751553663,0.05152,118180.0,118170.0,1.78548412]
[1753751555364,0.05152,118180.0,118170.0,1.81590894]
[1753751555567,0.006,118180.0,118170.0,1.81590894]
[1753751555969,0.05152,118180.0,118170.0,1.81590894]
[1753751560474,0.05152,118180.0,118170.0,1.70928806]
[1753751560872,0.05152,118180.0,118170.0,1.81590894]
[1753751561272,0.05152,118180.0,118170.0,1.70928806]
[1753751562572,0.05152,118180.0,118170.0,1.81590894]
[1753751562769,0.006,118180.0,118170.0,1.81590894]
[1753751564371,0.05494,118180.0,118170.0,1.81590894]
[1753751566076,0.006,118180.0,118170.0,1.81590894]
[1753751566277,0.006,118180.0,118170.0,2.02870357]
[1753751566672,0.006,118180.0,118170.0,1.70928806]
[1753751566870,0.006,118180.0,118170.0,1.55302472]
[1753751567066,0.006,118180.0,118170.0,1.76581935]
[1753751567972,0.004,118180.0,118170.0,1.76581935]
[1753751568978,1.18441138,118200.0,118190.0,0.2383401]
[1753751569178,1.18441138,118200.0,118190.0,0.83666354]
[1753751569179,1.30441138,118200.0,118190.0,0.83666354]
[1753751569367,1.30441138,118200.0,118190.0,1.51582354]
[1753751571479,1.30741138,118200.0,118190.0,1.51582354]
[1753751572773,1.36686138,118200.0,118190.0,1.51582354]
[1753751573273,1.36686138,118200.0,118190.0,1.52439454]
[1753751573678,1.36686138,118200.0,118190.0,1.31159991]
[1753751574279,1.37186138,118200.0,118190.0,1.31159991]
[1753751574579,1.37186138,118200.0,118190.0,1.27298991]
[1753751577489,1.37186138,118200.0,118190.0,1.31159991]
[1753751579685,1.37186138,118200.0,118190.0,1.52439454]
[1753751581579,1.37086138,118200.0,118190.0,1.52439454]
[1753751582684,1.36986138,118200.0,118190.0,1.52439454]
[1753751582883,1.36986138,118200.0,118190.0,1.31159991]
[1753751583184,1.36986138,118200.0,118190.0,1.27298991]
[1753751585487,1.36986138,118200.0,118190.0,1.31159991]
[1753751586292,1.36986138,118200.0,118190.0,1.52439454]
[1753751589083,1.36986138,118200.0,118190.0,0.84523454]
[1753751589291,1.36986138,118200.0,118190.0,0.63243991]
[1753751589583,1.36986138,118200.0,118190.0,0.59382991]
[1753751591389,1.36986138,118200.0,118190.0,0.80662454]
[1753751595493,1.36986138,118200.0,118190.0,0.73046036]
[1753751605389,1.36986138,118200.0,118190.0,0.76907036]
[1753751606097,1.36986138,118200.0,118190.0,0.84525527]
[1753751606996,1.36986138,118200.0,118190.0,0.80664527]
[1753751607797,1.36986138,118200.0,118190.0,0.73046036]
[1753751607993,1.24679138,118200.0,118190.0,0.73046036]
[1753751608199,1.80519138,118200.0,118190.0,1.0580482]
[1753751608398,1.30235138,118200.0,118190.0,0.84525357]
[1753751608600,1.19235138,118200.0,118190.0,0.84525357]
[1753751609800,1.24869138,118200.0,118190.0,0.84525357]
[1753751611104,1.35869138,118200.0,118190.0,0.84525357]
[1753751611501,1.24869138,118200.0,118190.0,0.84525357]
[1753751611900,1.35869138,118200.0,118190.0,0.84525357]
[1753751612304,1.24869138,118200.0,118190.0,1.52405357]
[1753751612507,1.35869138,118200.0,118190.0,1.52405357]
[1753751613306,1.24869138,118200.0,118190.0,1.52405357]
[1753751613504,1.35869138,118200.0,118190.0,1.52405357]
[1753751617311,1.24869138,118200.0,118190.0,1.52405357]
[1753751617509,1.35869138,118200.0,118190.0,1.52405357]
[1753751619112,1.35869138,118200.0,118190.0,1.44787036]
[1753751621113,1.35869138,118200.0,118190.0,1.92356499]
[1753751621114,1.08768478,118200.0,118190.0,1.92356499]
[1753751621314,1.08768478,118200.0,118190.0,2.03020165]
[1753751622210,1.08768478,118200.0,118190.0,1.92356499]
[1753751623614,1.08768478,118200.0,118190.0,2.03013691]
[1753751623810,1.08768478,118200.0,118190.0,1.92356499]
[1753751624208,1.08768478,118200.0,118190.0,2.03013691]
[1753751624714,1.08768478,118200.0,118190.0,1.92356499]
[1753751625911,1.0207434,118200.0,118190.0,1.92356499]
[1753751627716,0.9723334,118200.0,118190.0,1.92356499]
[1753751628104,1.0187434,118200.0,118190.0,1.92456499]
[1753751629523,1.0825734,118200.0,118190.0,1.92456499]
[1753751632219,1.0785734,118200.0,118190.0,1.92456499]
[1753751632420,1.0805734,118200.0,118190.0,1.92456499]
[1753751633220,1.0805734,118200.0,118190.0,2.03102225]
[1753751633818,1.1364834,118200.0,118190.0,1.35222225]
[1753751634025,1.1364834,118200.0,118190.0,1.81886762]
[1753751635629,1.1364834,118200.0,118190.0,1.71241036]
[1753751637127,1.1364834,118200.0,118190.0,1.81886762]
[1753751637521,1.1364834,118200.0,118190.0,1.71241036]
[1753751637926,1.1364834,118200.0,118190.0,1.81886762]
[1753751639833,1.1364834,118200.0,118190.0,1.81866762]
[1753751640329,1.1364834,118200.0,118190.0,1.71221036]
[1753751640726,1.2564834,118200.0,118190.0,0.86728036]
[1753751640924,1.46927803,118200.0,118190.0,1.40969803]
[1753751641424,1.2564834,118200.0,118190.0,0.73053803]
[1753751641631,1.2564834,118200.0,118190.0,1.40969803]
[1753751642024,1.2564834,118200.0,118190.0,1.40970517]
[1753751642424,1.2564834,118200.0,118190.0,0.65448573]
[1753751642632,1.2564834,118200.0,118190.0,1.33384573]
[1753751642831,1.2564834,118200.0,118190.0,1.33380573]
[1753751643032,1.1364834,118200.0,118190.0,1.54660036]
[1753751643230,1.2464834,118200.0,118190.0,1.33380573]
[1753751644325,1.2464834,118200.0,118190.0,1.16295573]
[1753751644731,1.2464834,118200.0,118190.0,1.37575036]
[1753751645821,1.2464834,118200.0,118190.0,1.37623036]
[1753751648133,1.2464834,118200.0,118190.0,1.37647036]
[1753751649526,1.2464834,118200.0,118190.0,1.40945036]
[1753751650629,1.1364834,118200.0,118190.0,1.40945036]
[1753751650830,1.2564834,118200.0,118190.0,1.40945036]
[1753751652328,1.2564834,118200.0,118190.0,1.4855098]
[1753751657251,1.2564834,118200.0,118190.0,1.05992054]
[1753751657452,1.2564834,118200.0,118190.0,1.4855098]
[1753751658442,1.2564834,118200.0,118190.0,1.40945036]
[1753751660749,1.2564834,118200.0,118190.0,1.40917036]
[1753751661749,1.4256902,118200.0,118190.0,1.06313473]
[1753751661949,1.63848483,118200.0,118190.0,1.06313473]
[1753751662154,1.63848483,118200.0,118190.0,1.13921887]
[1753751662155,1.4256902,118200.0,118190.0,1.13921887]
[1753751662350,1.2564834,118200.0,118190.0,1.11905473]
[1753751665761,1.2564834,118200.0,118190.0,1.19516771]
[1753751666360,1.2564834,118200.0,118190.0,1.11905473]
[1753751667863,1.2564834,118200.0,118190.0,1.18785473]
[1753751669157,1.2564834,118200.0,118190.0,1.26399421]
[1753751669363,1.2564834,118200.0,118190.0,1.18785473]
[1753751669965,1.2564834,118200.0,118190.0,1.40064936]
[1753751671370,1.2564834,118200.0,118190.0,1.43925936]
[1753751672259,1.2005734,118200.0,118190.0,1.43925936]
[1753751672555,1.2556134,118200.0,118190.0,1.43925936]
[1753751677064,1.2556134,118200.0,118190.0,1.40064936]
[1753751677567,1.4248201,118200.0,118190.0,0.50805473]
[1753751677773,1.46840803,118200.0,118190.0,0.50805473]
[1753751677972,1.2556134,118200.0,118190.0,0.50805473]
[1753751680872,1.2556134,118200.0,118190.0,0.42004473]
[1753751681067,1.46840803,118200.0,118190.0,0.42004473]
[1753751681465,1.63761473,118200.0,118190.0,0.38301473]
[1753751681674,1.85040936,118200.0,118190.0,0.24640252]
[1753751682176,1.85040936,118200.0,118190.0,0.1702201]
[1753751683174,1.85040936,118200.0,118190.0,0.24639113]
[1753751683579,2.35040936,118200.0,118190.0,0.24639113]
[1753751684281,2.13761473,118200.0,118190.0,0.24639113]
[1753751685379,2.13761473,118200.0,118190.0,0.1702201]
[1753751688980,2.13761473,118200.0,118190.0,0.38301473]
[1753751689178,2.13761473,118200.0,118190.0,0.1702201]
[1753751689987,2.13761473,118200.0,118190.0,0.38301473]
[1753751693586,2.13761473,118200.0,118190.0,0.1702201]
[1753751693886,1.9248201,118200.0,118190.0,0.38301473]
[1753751694085,2.13761473,118200.0,118190.0,0.38301473]
[1753751694981,2.35040936,118200.0,118190.0,0.38301473]
[1753751695295,2.35040936,118200.0,118190.0,0.1702201]
[1753751697183,2.13761473,118200.0,118190.0,0.1702201]
[1753751697685,2.13761473,118200.0,118190.0,0.38301473]
[1753751698091,2.35040936,118200.0,118190.0,0.38301473]
[1753751700081,2.35040936,118200.0,118190.0,0.1702201]
[1753751700784,2.35040936,118200.0,118190.0,0.38301473]
[1753751701487,2.35040936,118200.0,118190.0,0.1702201]
[1753751701687,2.13761473,118200.0,118190.0,0.38301473]
[1753751702189,2.13761473,118200.0,118190.0,0.1702201]
[1753751702388,2.13761473,118200.0,118190.0,0.38301473]
[1753751702585,2.81693473,118200.0,118190.0,0.50380473]
[1753751704090,2.81693473,118200.0,118190.0,0.47054473]
[1753751704587,2.81693473,118200.0,118190.0,0.41974473]
[1753751705595,2.81693473,118200.0,118190.0,0.38301473]
[1753751705889,3.02972936,118200.0,118190.0,0.38301473]
[1753751711800,3.02972936,118200.0,118190.0,0.1702201]
[1753751712300,3.02972936,118200.0,118190.0,0.38301473]
[1753751712499,3.02972936,118200.0,118190.0,0.1702201]
[1753751712699,3.02972936,118200.0,118190.0,0.38301473]
[1753751715304,2.81693473,118200.0,118190.0,0.38301473]
[1753751715501,3.02972936,118200.0,118190.0,0.38301473]
[1753751721313,2.81693473,118200.0,118190.0,0.38301473]
[1753751722413,3.02972936,118200.0,118190.0,0.38301473]
[1753751728122,3.02972936,118200.0,118190.0,0.1702201]
[1753751728917,3.02972936,118200.0,118190.0,0.38301473]
[1753751729625,3.02972936,118200.0,118190.0,0.1702201]
[1753751731624,3.02972936,118200.0,118190.0,0.38301473]
[1753751733627,2.81693473,118200.0,118190.0,0.38301473]
[1753751733827,2.81693473,118200.0,118190.0,0.1702201]
[1753751734028,2.81693473,118200.0,118190.0,0.38301473]
[1753751734223,3.02972936,118200.0,118190.0,0.38301473]
[1753751735128,2.81693473,118200.0,118190.0,0.38301473]
[1753751736130,3.02972936,118200.0,118190.0,0.38301473]
[1753751740838,3.02972936,118200.0,118190.0,0.1702201]
[1753751741033,3.02972936,118200.0,118190.0,0.38301473]
[1753751744941,3.02972936,118200.0,118190.0,0.1702201]
[1753751745241,3.02972936,118200.0,118190.0,0.38301473]
[1753751745539,3.02972936,118200.0,118190.0,0.1702201]
[1753751746839,3.02972936,118200.0,118190.0,0.38301473]
[1753751749738,3.02972936,118200.0,118190.0,0.1702201]
[1753751749942,0.436441,118190.0,118180.0,0.20309063]
[1753751750244,0.4364553,118180.0,118170.0,0.2538691]
[1753751750438,1.65108456,118180.0,118170.0,0.2538691]
[1753751750636,1.65108456,118180.0,118170.0,0.33007733]
[1753751751643,1.65108456,118180.0,118170.0,0.28776723]
[1753751752541,1.65108456,118180.0,118170.0,0.24545793]
[1753751752744,2.15108456,118180.0,118170.0,0.1692497]
[1753751753041,2.15208456,118180.0,118170.0,0.1692497]
[1753751753243,2.15208456,118180.0,118170.0,0.1722497]
[1753751754243,2.15208456,118180.0,118170.0,0.1702497]
[1753751762648,1.0474553,118180.0,118170.0,0.49800433]
[1753751762845,0.9959353,118180.0,118170.0,0.59745935]
[1753751763041,0.69819,118180.0,118170.0,0.81025398]
[1753751763240,0.69819,118180.0,118170.0,0.74940896]
[1753751763241,1.29008,118180.0,118170.0,0.74940896]
[1753751763445,1.3395,118180.0,118170.0,0.82561719]
[1753751763849,0.8395,118180.0,118170.0,0.82561719]
[1753751764049,0.16042,118180.0,118170.0,0.82561719]
[1753751766048,0.22208,118180.0,118170.0,0.82561719]
[1753751766248,0.22208,118180.0,118170.0,0.74940896]
[1753751766448,0.25985,118180.0,118170.0,0.74940896]
[1753751766748,0.29291,118180.0,118170.0,0.74940896]
[1753751767845,0.001,118180.0,118170.0,0.74940896]
[1753751768050,0.05042,118180.0,118170.0,0.74940896]
[1753751769250,0.18042,118180.0,118170.0,0.74940896]
[1753751769450,0.05042,118180.0,118170.0,0.74940896]
[1753751769652,0.17042,118180.0,118170.0,0.74940896]
[1753751771457,0.17042,118180.0,118170.0,1.01230896]
[1753751772050,0.05042,118180.0,118170.0,1.01230896]
[1753751772258,0.05042,118180.0,118170.0,1.69126896]
[1753751772850,0.17042,118180.0,118170.0,1.69126896]
[1753751773045,0.05042,118180.0,118170.0,1.69126896]
[1753751774062,0.16042,118180.0,118170.0,1.69126896]
[1753751774657,0.05042,118180.0,118170.0,1.69126896]
[1753751776058,0.17042,118180.0,118170.0,1.69126896]
[1753751776254,0.05042,118180.0,118170.0,1.69126896]
[1753751776559,0.05042,118180.0,118170.0,1.01230896]
[1753751777559,0.05042,118180.0,118170.0,1.69122896]
[1753751778359,0.16042,118180.0,118170.0,1.69122896]
[1753751778858,0.18042,118180.0,118170.0,1.69122896]
[1753751779560,0.05042,118180.0,118170.0,1.69122896]
[1753751779955,0.18042,118180.0,118170.0,1.69122896]
[1753751780256,0.05042,118180.0,118170.0,1.69122896]
[1753751781564,0.00254346,118180.0,118170.0,1.69122896]
[1753751781763,0.22024,118190.0,118180.0,0.2365555]
[1753751781960,0.35024,118190.0,118180.0,0.83834847]
[1753751783156,0.35224,118190.0,118180.0,0.83834847]
[1753751783555,0.40018,118190.0,118180.0,0.83834847]
[1753751784266,0.17175,118190.0,118180.0,0.83834847]
[1753751784762,0.31038,118190.0,118180.0,0.83834847]
[1753751784962,0.31038,118190.0,118180.0,0.83934847]
[1753751785164,0.30838,118190.0,118180.0,0.83934847]
[1753751786162,0.39444,118190.0,118180.0,0.83934847]
[1753751787964,0.60723463,118190.0,118180.0,0.83934847]
[1753751788167,0.77645583,118190.0,118180.0,0.83934847]
[1753751789566,0.5636612,118190.0,118180.0,0.83934847]
[1753751789967,0.77645583,118190.0,118180.0,0.83934847]
[1753751790668,0.5636612,118190.0,118180.0,0.83934847]
[1753751791867,0.77645583,118190.0,118180.0,0.41375921]
[1753751792068,0.77645583,118190.0,118180.0,0.24623921]
[1753751792470,0.5636612,118190.0,118180.0,0.49445384]
[1753751792769,0.77645583,118190.0,118180.0,0.62655384]
[1753751793270,0.60723463,118190.0,118180.0,0.62655384]
[1753751793670,1.28603463,118190.0,118180.0,0.62655384]
[1753751793867,1.28603463,118190.0,118180.0,0.83934847]
[1753751794473,1.45525583,118190.0,118180.0,0.83934847]
[1753751794875,1.45525583,118190.0,118180.0,0.62655384]
[1753751795973,1.45525583,118190.0,118180.0,0.83934847]
[1753751796174,1.45525583,118190.0,118180.0,0.62655384]
[1753751796778,1.02218,118190.0,118180.0,0.83934847]
[1753751796967,1.07324,118190.0,118180.0,0.83934847]
[1753751797368,1.28603463,118190.0,118180.0,0.83934847]
[1753751798175,1.07324,118190.0,118180.0,0.83934847]
[1753751801573,1.02218,118190.0,118180.0,0.83934847]
[1753751802279,0.39444,118190.0,118180.0,0.83934847]
[1753751802479,0.26444,118190.0,118180.0,0.83934847]
[1753751802780,0.26444,118190.0,118180.0,1.51810847]
[1753751802980,0.36444,118190.0,118180.0,1.51810847]
[1753751803978,0.26444,118190.0,118180.0,1.51810847]
[1753751804280,0.26444,118190.0,118180.0,1.44210476]
[1753751804483,0.35444,118190.0,118180.0,1.44210476]
[1753751804883,1.9694803,118200.0,118190.0,0.3339412]
[1753751805183,2.29227493,118200.0,118190.0,0.54673583]
[1753751805483,2.29227493,118200.0,118190.0,0.62292338]
[1753751806280,2.0794803,118200.0,118190.0,0.54673583]
[1753751806476,2.29227493,118200.0,118190.0,0.54673583]
[1753751806676,2.29427493,118200.0,118190.0,0.54673583]
[1753751806983,2.0814803,118200.0,118190.0,0.54673583]
[1753751809176,1.2335134,118200.0,118190.0,0.49675583]
[1753751809382,1.9122334,118200.0,118190.0,0.75953046]
[1753751809577,1.0265934,118200.0,118190.0,1.44659831]
[1753751809883,1.0883334,118200.0,118190.0,1.44659831]
[1753751810083,1.1116334,118200.0,118190.0,1.44659831]
[1753751810679,0.9683334,118200.0,118190.0,1.70949831]
[1753751810883,0.9683334,118200.0,118190.0,1.71049831]
[1753751811084,0.9418796,118200.0,118190.0,1.99948049]
[1753751811280,0.9027353,118200.0,118190.0,1.99948049]
[1753751811482,0.4677208,118200.0,118190.0,2.16868849]
[1753751811680,0.3944512,118200.0,118190.0,2.16868849]
[1753751811881,0.3557955,118200.0,118190.0,2.16868849]
[1753751812083,0.3313457,118200.0,118190.0,2.16868849]
[1753751812282,0.3072355,118200.0,118190.0,2.16868849]
[1753751812587,0.2290991,118200.0,118190.0,2.16868849]
[1753751812781,0.1208102,118200.0,118190.0,2.09739268]